fUSD/lending_fUSD_20260126
["ID","MTS","AMOUNT","RATE_DAILY","PERIOD"]
[403666714,1769457480474,-728.00051685,0.00015653,2]
[403666715,1769457480510,-728.00051685,0.00015653,2]
[403666716,1769457480546,-728.00051685,0.00015653,2]
[403666717,1769457480581,-728.00051685,0.00015653,2]
[403666718,1769457480617,-728.00051685,0.00015653,2]
[403666719,1769457480729,-728.00051685,0.00015653,2]
[403666720,1769457480765,-728.00051685,0.00015653,2]
[403666721,1769457480799,-728.00051685,0.00015653,2]
[403666722,1769457480833,-728.00051685,0.00015653,2]
[403666723,1769457480872,-728.00051685,0.00015653,2]
[403666724,1769457480907,-728.00051685,0.00015653,2]
[403666725,1769457480942,-536.00328095,0.00015653,2]
[403666726,1769457481003,-191.9972359,0.00015653,2]
[403666727,1769457481031,-11.77008401,0.00015653,2]
[403666728,1769457481123,-716.23043284,0.00015653,2]
[403666729,1769457481161,-728.00051685,0.00015653,2]
[403666730,1769457481196,-728.00051685,0.00015653,2]
[403666731,1769457481233,-728.00051685,0.00015653,2]
[403666732,1769457481267,-728.00051685,0.00015653,2]
[403666733,1769457481303,-728.00051685,0.00015653,2]
[403666734,1769457481579,300.0,0.00015652,2]
[403666735,1769457482643,-218.34596674,0.00015654,2]
[403666736,1769457483961,-319.89464755,0.00015654,2]
[403666737,1769457483992,-431.50320739,0.00015654,2]
[403666738,1769457484021,-500.0,0.00015654,2]
[403666739,1769457484051,-500.0,0.00015654,2]
[403666740,1769457484084,-500.0,0.00015654,2]
[403666741,1769457484114,-211.84332142,0.00015654,2]
[403666742,1769457484143,-500.0,0.00015654,2]
[403666743,1769457484171,-500.0,0.00015654,2]
[403666744,1769457484200,-500.0,0.00015654,2]
[403666745,1769457484229,-500.0,0.00015654,2]
[403666746,1769457484260,-500.0,0.00015654,2]
[403666747,1769457484700,-446.77753012,0.00015654,2]
[403666748,1769457484729,-1200.0,0.00015654,2]
[403666749,1769457486671,250.0,0.00015654,2]
[403666750,1769457487032,-320.65782382,0.00015655,2]
[403666751,1769457491766,-472.55787541,0.00015655,2]
[403666752,1769457493907,-161.37818768,0.00015655,2]
[403666753,1769457495969,-273.0,0.00015655,2]
[403666754,1769457501686,1200.0,0.00015654,2]
[403666755,1769457503727,-175.38621614,0.00015655,2]
[403666756,1769457507315,-423.79,0.00015655,2]
[403666757,1769457510010,-155.26686864,0.00015655,2]
[403666758,1769457512846,-189.91285581,0.00015655,2]
[403666759,1769457515636,-200.0,0.00015655,2]
[403666760,1769457517663,-165.57403326,0.00015655,2]
[403666761,1769457519143,-295.06693158,0.00015655,2]
[403666762,1769457521337,-177.2800995,0.00015655,2]
[403666763,1769457524678,-164.28777937,0.00015655,2]
[403666764,1769457528671,-219.23544984,0.00015655,2]
[403666765,1769457530912,-655.63377225,0.00015655,2]
[403666766,1769457532549,-268.01500404,0.00015655,2]
[403666767,1769457536577,-182.4341895,0.00015655,2]
[403666768,1769457539373,-382.16196347,0.00015655,2]
[403666769,1769457549631,-228.42331248,0.00015655,2]
[403666770,1769457551783,-300.0,0.00015655,2]
[403666771,1769457553912,-314.91192107,0.00015655,2]
[403666772,1769457555505,-240.49128124,0.00015655,2]
[403666773,1769457557199,-240.12905618,0.00015655,2]
[403666774,1769457558781,-162.06320131,0.00015655,2]
[403666775,1769457561538,-167.15341157,0.00015655,2]
[403666776,1769457579748,-272.39166125,0.00015655,2]
[403666777,1769457581263,-180.10092261,0.00015655,2]
[403666778,1769457583337,-333.71542829,0.00015655,2]
[403666779,1769457586640,-382.3120983,0.00015655,2]
[403666780,1769457589351,-160.40670227,0.00015655,2]
[403666781,1769457591531,-897.80641989,0.00015655,2]
[403666782,1769457593737,-288.38501587,0.00015655,2]
[403666783,1769457599090,-244.04452484,0.00015655,2]
[403666784,1769457600923,-220.90167977,0.00015655,2]
[403666785,1769457601132,300.0,0.00015654,2]
[403666786,1769457601191,300.0,0.00015654,2]
[403666787,1769457601409,300.0,0.00015654,2]
[403666788,1769457601492,1200.0,0.00015654,2]
[403666789,1769457602272,300.0,0.00015654,2]
[403666790,1769457602473,-300.0,0.00015655,2]
[403666791,1769457605732,-732.12055295,0.00015655,2]
[403666792,1769457608468,-187.57386683,0.00015655,2]
[403666793,1769457610054,1072.05,0.00015645,2]
[403666794,1769457610275,1072.05,0.00015645,2]
[403666795,1769457611579,-165.59896283,0.00015655,2]
[403666796,1769457613776,-240.68893856,0.00015655,2]
[403666797,1769457615210,-479.43231453,0.00015655,2]
[403666798,1769457617955,-258.87738128,0.00015655,2]
[403666799,1769457621271,-357.84889641,0.00015655,2]
[403666800,1769457625618,-639.41946431,0.00015655,2]
[403666801,1769457639541,-167.10986205,0.00015655,2]
[403666802,1769457641049,-260.66825846,0.00015655,2]
[403666803,1769457641415,240.6889,0.00015555,2]
[403666804,1769457642923,-224.34570258,0.00015655,2]
[403666805,1769457644524,-821.94509455,0.00015655,2]
[403666806,1769457646031,-196.31686961,0.00015655,2]
[403666807,1769457647662,-184.0,0.00015655,2]
[403666808,1769457649748,-226.62935403,0.00015655,2]
[403666809,1769457651455,-153.8599972,0.00015655,2]
[403666810,1769457654188,-254.30682026,0.00015655,2]
[403666811,1769457656237,-269.12598303,0.00015655,2]
[403666812,1769457660130,-220.77298238,0.00015655,2]
[403666813,1769457661259,300.0,0.00015654,2]
[403666814,1769457661842,-193.27711953,0.00015655,2]
[403666815,1769457664745,-192.72668879,0.00015655,2]
[403666816,1769457666783,-271.06741652,0.00015655,2]
[403666817,1769457669522,-166.66,0.00015655,2]
[403666818,1769457684518,-240.52386439,0.00015655,2]
[403666819,1769457686572,-248.65015944,0.00015655,2]
[403666820,1769457689289,-226.46511723,0.00015655,2]
[403666821,1769457691663,171.66603976,0.00015555,2]
[403666822,1769457691686,4476.20036024,0.00015555,2]
[403666823,1769457692067,-249.0,0.00015655,2]
[403666824,1769457694112,-157.51314436,0.00015655,2]
[403666825,1769457695575,-203.84201728,0.00015655,2]
[403666826,1769457697467,166.6601,0.00015555,2]
[403666827,1769457697660,-184.42079168,0.00015655,2]
[403666828,1769457698059,2764.383,0.00015341,2]
[403666829,1769457698160,218.646,0.00015341,2]
[403666830,1769457714510,-344.65163368,0.00015655,2]
[403666831,1769457718111,-191.61455368,0.00015655,2]
[403666832,1769457719203,-244.80789902,0.00015655,2]
[403666833,1769457721210,300.0,0.00015654,2]
[403666834,1769457722856,-219.58282256,0.00015655,2]
[403666835,1769457730669,-161.9472056,0.00015655,2]
[403666836,1769457732237,-279.49107141,0.00015655,2]
[403666837,1769457734464,-161.65817532,0.00015655,2]
[403666838,1769457735991,-160.95252468,0.00015655,2]
[403666839,1769457736936,500.0,0.00015555,2]
[403666840,1769457737544,-165.26725566,0.00015655,2]
[403666841,1769457739150,1574.12053976,0.00015654,2]
[403666842,1769457739172,3255.13844294,0.00015654,2]
[403666843,1769457739904,-394.2525394,0.00015655,2]
[403666844,1769457741706,-234.25708548,0.00015655,2]
[403666845,1769457745995,-253.78891903,0.00015655,2]
[403666846,1769457750504,-200.0,0.00015655,2]
[403666847,1769457755153,-163.05036584,0.00015655,2]
[403666848,1769457757519,-392.55502405,0.00015655,2]
[403666849,1769457759480,-211.06256738,0.00015655,2]
[403666850,1769457759563,500.0,0.00015654,2]
[403666851,1769457759601,995.62574597,0.00015654,2]
[403666852,1769457759633,500.0,0.00015654,2]
[403666853,1769457759669,995.62574597,0.00015654,2]
[403666854,1769457759713,570.0,0.00015654,2]
[403666855,1769457759749,995.62574597,0.00015654,2]
[403666856,1769457759780,304.64258665,0.00015654,2]
[403666857,1769457759813,995.62574597,0.00015654,2]
[403666858,1769457759843,500.0,0.00015654,2]
[403666859,1769457759878,387.72598653,0.00015654,2]
[403666860,1769457759902,607.89975944,0.00015654,2]
[403666861,1769457759943,995.62574597,0.00015654,2]
[403666862,1769457759984,995.62574597,0.00015654,2]
[403666863,1769457760017,995.62574597,0.00015654,2]
[403666864,1769457760051,995.62574597,0.00015654,2]
[403666865,1769457760086,995.62574597,0.00015654,2]
[403666866,1769457760118,995.62574597,0.00015654,2]
[403666867,1769457760158,995.62574597,0.00015654,2]
[403666868,1769457760202,995.62574597,0.00015654,2]
[403666869,1769457760242,995.62574597,0.00015654,2]
[403666870,1769457760273,431.47852683,0.00015654,2]
[403666871,1769457760298,564.14721914,0.00015654,2]
[403666872,1769457760330,995.62574597,0.00015654,2]
[403666873,1769457760362,995.62574597,0.00015654,2]
[403666874,1769457760399,995.62574597,0.00015654,2]
[403666875,1769457760431,995.62574597,0.00015654,2]
[403666876,1769457760482,995.62574597,0.00015654,2]
[403666877,1769457761325,995.62574597,0.00015654,2]
[403666878,1769457761366,995.62574597,0.00015654,2]
[403666879,1769457761408,995.62574597,0.00015654,2]
[403666880,1769457761443,995.62574597,0.00015654,2]
[403666881,1769457761474,475.23106713,0.00015654,2]
[403666882,1769457761498,520.39467884,0.00015654,2]
[403666883,1769457761530,995.62574597,0.00015654,2]
[403666884,1769457761562,995.62574597,0.00015654,2]
[403666885,1769457761597,995.62574597,0.00015654,2]
[403666886,1769457761632,995.62574597,0.00015654,2]
[403666887,1769457761670,995.62574597,0.00015654,2]
[403666888,1769457761703,995.62574597,0.00015654,2]
[403666889,1769457761744,995.62574597,0.00015654,2]
[403666890,1769457761787,995.62574597,0.00015654,2]
[403666891,1769457761829,995.62574597,0.00015654,2]
[403666892,1769457761865,518.98360743,0.00015654,2]
[403666893,1769457761890,476.64213854,0.00015654,2]
[403666894,1769457761925,995.62574597,0.00015654,2]
[403666895,1769457761973,995.62574597,0.00015654,2]
[403666896,1769457762009,995.62574597,0.00015654,2]
[403666897,1769457762042,995.62574597,0.00015654,2]
[403666898,1769457762081,995.62574597,0.00015654,2]
[403666899,1769457762127,995.62574597,0.00015654,2]
[403666900,1769457762161,995.62574597,0.00015654,2]
[403666901,1769457762204,995.62574597,0.00015654,2]
[403666902,1769457762244,995.62574597,0.00015654,2]
[403666903,1769457762279,562.73614773,0.00015654,2]
[403666904,1769457762302,432.88959824,0.00015654,2]
[403666905,1769457762350,995.62574597,0.00015654,2]
[403666906,1769457762380,995.62574597,0.00015654,2]
[403666907,1769457762688,995.62574597,0.00015654,2]
[403666908,1769457762727,995.62574597,0.00015654,2]
[403666909,1769457762769,995.62574597,0.00015654,2]
[403666910,1769457762811,995.62574597,0.00015654,2]
[403666911,1769457762845,995.62574597,0.00015654,2]
[403666912,1769457762888,995.62574597,0.00015654,2]
[403666913,1769457762926,995.62574597,0.00015654,2]
[403666914,1769457762959,606.48868803,0.00015654,2]
[403666915,1769457763015,-290.2265554,0.00015654,2]
[403666921,1769457829830,-2500.0,0.00015555,2]
[403666922,1769457829859,-1672.48400594,0.00015555,2]
[403666923,1769457829888,-172.22172116,0.00015555,2]
[403666924,1769457829918,-642.0,0.00015653,2]
[403666925,1769457830424,-98.91050254,0.00015654,2]
[403666926,1769457830454,-995.62574597,0.00015654,2]
[403666927,1769457830483,-300.0,0.00015654,2]
[403666928,1769457830512,-300.0,0.00015654,2]
[403666929,1769457830541,-253.0,0.00015654,2]
[403666930,1769457841544,300.0,0.00015654,2]
[403666931,1769457859728,1399.59916661,0.00015555,2]
[403666932,1769457866343,461.8778,0.00015555,2]
[403666933,1769457901152,187.0,0.00015654,2]
[403666934,1769457901396,300.0,0.00015654,2]
[403666935,1769457901427,1200.0,0.00015654,2]
[403666936,1769457923364,500.0,0.00015654,2]
[403666937,1769457926901,704.03088788,0.00015654,2]
[403666938,1769457926939,704.03088788,0.00015654,2]
[403666939,1769457926977,348.39876061,0.00015654,2]
[403666940,1769457927004,355.63212727,0.00015654,2]
[403666941,1769457927038,704.03088788,0.00015654,2]
[403666942,1769457927078,704.03088788,0.00015654,2]
[403666943,1769457927117,704.03088788,0.00015654,2]
[403666944,1769457927157,704.03088788,0.00015654,2]
[403666945,1769457927198,704.03088788,0.00015654,2]
[403666946,1769457927230,704.03088788,0.00015654,2]
[403666947,1769457927268,704.03088788,0.00015654,2]
[403666948,1769457927305,704.03088788,0.00015654,2]
[403666949,1769457927338,704.03088788,0.00015654,2]
[403666950,1769457927371,704.03088788,0.00015654,2]
[403666951,1769457927412,704.03088788,0.00015654,2]
[403666952,1769457927449,704.03088788,0.00015654,2]
[403666953,1769457927493,704.03088788,0.00015654,2]
[403666954,1769457927527,491.97633029,0.00015654,2]
[403666955,1769457927552,212.05455759,0.00015654,2]
[403666956,1769457927609,704.03088788,0.00015654,2]
[403666957,1769457927650,704.03088788,0.00015654,2]
[403666958,1769457927693,704.03088788,0.00015654,2]
[403666959,1769457927728,704.03088788,0.00015654,2]
[403666960,1769457927762,704.03088788,0.00015654,2]
[403666961,1769457927812,704.03088788,0.00015654,2]
[403666962,1769457927847,704.03088788,0.00015654,2]
[403666963,1769457927885,704.03088788,0.00015654,2]
[403666964,1769457927923,704.03088788,0.00015654,2]
[403666965,1769457927965,704.03088788,0.00015654,2]
[403666966,1769457928003,704.03088788,0.00015654,2]
[403666967,1769457928039,704.03088788,0.00015654,2]
[403666968,1769457928078,704.03088788,0.00015654,2]
[403666969,1769457928121,635.55389997,0.00015654,2]
[403666970,1769457928147,68.47698791,0.00015654,2]
[403666971,1769457928192,704.03088788,0.00015654,2]
[403666972,1769457928234,704.03088788,0.00015654,2]
[403666973,1769457928279,704.03088788,0.00015654,2]
[403666974,1769457928315,704.03088788,0.00015654,2]
[403666975,1769457928348,704.03088788,0.00015654,2]
[403666976,1769457928387,704.03088788,0.00015654,2]
[403666977,1769457928432,704.03088788,0.00015654,2]
[403666978,1769457928473,704.03088788,0.00015654,2]
[403666979,1769457928506,704.03088788,0.00015654,2]
[403666980,1769457928558,704.03088788,0.00015654,2]
[403666981,1769457928600,302.05224517,0.00015654,2]
[403666982,1769457928640,704.03088788,0.00015654,2]
[403666983,1769457928682,704.03088788,0.00015654,2]
[403666984,1769457928729,704.03088788,0.00015654,2]
[403666985,1769457928764,477.07922448,0.00015654,2]
[403666986,1769457928792,226.9516634,0.00015654,2]
[403666987,1769457928846,704.03088788,0.00015654,2]
[403666988,1769457928901,704.03088788,0.00015654,2]
[403666989,1769457928946,704.03088788,0.00015654,2]
[403666990,1769457928980,704.03088788,0.00015654,2]
[403666991,1769457930954,172.22172116,0.00015555,2]
[403666992,1769457942614,376.76843,0.00015654,2]
[403666993,1769457942648,500.0,0.00015654,2]
[403666994,1769457942694,500.0,0.00015654,2]
[403666995,1769457942761,500.0,0.00015654,2]
[403666996,1769457942933,500.0,0.00015654,2]
[403666997,1769457942998,448.290325,0.00015654,2]
[403666998,1769457959487,166.66033719,0.00015555,2]
[403666999,1769457962428,300.0,0.00015654,2]
[403667000,1769457971866,535.72298294,0.00015654,2]
[403667001,1769458025296,500.0,0.00015655,2]
[403667002,1769458025894,306.72319279,0.00015655,2]
[403667003,1769458028968,200.0,0.00015655,2]
[403667004,1769458030211,155.87085309,0.00015655,2]
[403667005,1769458030343,464.27701706,0.00015654,2]
[403667006,1769458031987,200.0,0.00015655,2]
[403667007,1769458037227,-151.0,0.00015655,2]
[403667008,1769458037259,-151.0,0.00015655,2]
[403667009,1769458037289,-151.0,0.00015655,2]
[403667010,1769458037319,-151.0,0.00015655,2]
[403667011,1769458040511,-151.0,0.00015655,2]
[403667012,1769458040538,-151.0,0.00015655,2]
[403667013,1769458040566,-151.0,0.00015655,2]
[403667014,1769458040594,-151.0,0.00015655,2]
[403667015,1769458040856,-151.0,0.00015655,2]
[403667016,1769458043327,-151.0,0.00015655,2]
[403667017,1769458043356,-151.0,0.00015655,2]
[403667018,1769458043385,-500.0,0.00015655,2]
[403667019,1769458043413,-151.0,0.00015655,2]
[403667020,1769458043440,-500.0,0.00015655,2]
[403667021,1769458043469,-151.0,0.00015655,2]
[403667022,1769458046450,-500.0,0.00015655,2]
[403667023,1769458046479,-151.0,0.00015655,2]
[403667024,1769458046508,-151.0,0.00015655,2]
[403667025,1769458046537,-500.0,0.00015655,2]
[403667026,1769458046565,-151.0,0.00015655,2]
[403667027,1769458046594,-151.0,0.00015655,2]
[403667028,1769458046622,-500.0,0.00015655,2]
[403667029,1769458046650,-151.0,0.00015655,2]
[403667030,1769458046678,-151.0,0.00015655,2]
[403667031,1769458046706,-151.0,0.00015655,2]
[403667032,1769458046740,-500.0,0.00015655,2]
[403667033,1769458046777,-151.0,0.00015655,2]
[403667034,1769458046808,-151.0,0.00015655,2]
[403667035,1769458046838,-500.0,0.00015655,2]
[403667036,1769458047633,-151.0,0.00015655,2]
[403667037,1769458047663,-200.0,0.00015655,2]
[403667038,1769458047691,-151.0,0.00015655,2]
[403667039,1769458047720,-500.0,0.00015655,2]
[403667040,1769458049493,-151.0,0.00015655,2]
[403667041,1769458049524,-151.0,0.00015655,2]
[403667042,1769458049554,-317.5391001,0.00015655,2]
[403667043,1769458049584,-151.0,0.00015655,2]
[403667044,1769458049613,-151.0,0.00015655,2]
[403667045,1769458049643,-151.0,0.00015655,2]
[403667046,1769458053407,-151.0,0.00015655,2]
[403667047,1769458053437,-151.0,0.00015655,2]
[403667048,1769458053466,-151.0,0.00015655,2]
[403667049,1769458062207,-796.3628076,0.00015654,2]
[403667050,1769458063020,-8129.21444346,0.00015655,2]
[403667051,1769458064878,-172.22172116,0.00015555,2]
[403667052,1769458064941,-9655.56655768,0.00015655,2]
[403667053,1769458065000,-10000.01,0.00015655,2]
[403667054,1769458077964,-500.0,0.00015655,2]
[403667055,1769458077994,-500.0,0.00015655,2]
[403667056,1769458078023,-500.0,0.00015655,2]
[403667057,1769458078051,-500.0,0.00015655,2]
[403667058,1769458078079,-500.0,0.00015655,2]
[403667059,1769458078108,-500.0,0.00015655,2]
[403667060,1769458078137,-500.0,0.00015655,2]
[403667061,1769458078166,-500.0,0.00015655,2]
[403667062,1769458078306,-500.0,0.00015655,2]
[403667063,1769458078315,-1500.01,0.00015655,2]
[403667064,1769458086282,-796.3628076,0.00015654,2]
[403667065,1769458086315,-796.3628076,0.00015654,2]
[403667066,1769458086345,-796.3628076,0.00015654,2]
[403667067,1769458086376,-796.3628076,0.00015654,2]
[403667068,1769458086405,-300.0,0.00015654,2]
[403667069,1769458086434,-500.0,0.00015655,2]
[403667070,1769458086464,-512.07463646,0.00015655,2]
[403667071,1769458086628,-1004.95826628,0.00015655,2]
[403667072,1769458086677,-10000.01,0.00015655,2]
[403667073,1769458089329,-1861.7959,0.00015555,2]
[403667074,1769458089365,-6276.4182,0.00015655,2]
[403667075,1769458089471,-10000.01,0.00015655,2]
[403667076,1769458119532,-378.4483905,0.00015476,2]
[403667078,1769458134675,-192.73413162,0.00015476,2]
[403667079,1769458136887,-334.99224121,0.00015476,2]
[403667080,1769458140160,-3.82523667,0.00015476,2]
[403667081,1769458140183,-305.38696333,0.00015555,2]
[403667082,1769458140898,-1408.43926333,0.00015555,2]
[403667083,1769458140921,-7183.13147334,0.00015555,2]
[403667084,1769458141139,-2500.0,0.00015555,2]
[403667085,1769458141173,-796.3628076,0.00015654,2]
[403667086,1769458141204,-796.3628076,0.00015654,2]
[403667087,1769458141236,-796.3628076,0.00015654,2]
[403667088,1769458141335,-221.8331544,0.00015554,2]
[403667089,1769458141366,-78.1668456,0.00015554,2]
[403667090,1769458141393,-500.0,0.00015654,2]
[403667091,1769458141421,-563.8032275,0.00015654,2]
[403667092,1769458141449,-500.0,0.00015654,2]
[403667093,1769458141477,-500.0,0.00015654,2]
[403667094,1769458142114,151.0,0.00015653,2]
[403667095,1769458142318,300.0,0.00015654,2]
[403667096,1769458142943,-178.75890676,0.00015655,2]
[403667097,1769458143177,300.0,0.00015653,2]
[403667098,1769458144341,2072.0718,0.00015555,2]
[403667099,1769458151262,150.0,0.00015654,2]
[403667100,1769458170974,590.07398652,0.00015654,2]
[403667101,1769458171033,590.07398652,0.00015654,2]
[403667102,1769458171067,590.07398652,0.00015654,2]
[403667103,1769458171104,590.07398652,0.00015654,2]
[403667104,1769458171137,382.70210772,0.00015654,2]
[403667105,1769458171161,207.3718788,0.00015654,2]
[403667106,1769458171222,590.07398652,0.00015654,2]
[403667107,1769458171263,590.07398652,0.00015654,2]
[403667108,1769458171297,590.07398652,0.00015654,2]
[403667109,1769458171332,590.07398652,0.00015654,2]
[403667110,1769458171403,590.07398652,0.00015654,2]
[403667111,1769458171433,152.13538667,0.00015555,2]
[403667112,1769458171472,590.07398652,0.00015654,2]
[403667113,1769458171879,590.07398652,0.00015654,2]
[403667114,1769458172602,590.07398652,0.00015654,2]
[403667115,1769458172644,590.07398652,0.00015654,2]
[403667116,1769458172683,590.07398652,0.00015654,2]
[403667117,1769458172717,590.07398652,0.00015654,2]
[403667118,1769458172752,590.07398652,0.00015654,2]
[403667119,1769458172786,590.07398652,0.00015654,2]
[403667120,1769458172818,590.07398652,0.00015654,2]
[403667121,1769458172856,590.07398652,0.00015654,2]
[403667122,1769458172915,590.07398652,0.00015654,2]
[403667123,1769458172952,199.31895021,0.00015654,2]
[403667124,1769458172977,390.75503631,0.00015654,2]
[403667125,1769458173051,590.07398652,0.00015654,2]
[403667126,1769458173086,590.07398652,0.00015654,2]
[403667127,1769458173122,590.07398652,0.00015654,2]
[403667128,1769458173155,590.07398652,0.00015654,2]
[403667129,1769458173186,590.07398652,0.00015654,2]
[403667130,1769458173225,590.07398652,0.00015654,2]
[403667131,1769458173283,590.07398652,0.00015654,2]
[403667132,1769458173344,590.07398652,0.00015654,2]
[403667133,1769458173414,590.07398652,0.00015654,2]
[403667134,1769458173450,590.07398652,0.00015654,2]
[403667135,1769458173486,590.07398652,0.00015654,2]
[403667136,1769458173541,590.07398652,0.00015654,2]
[403667137,1769458173586,590.07398652,0.00015654,2]
[403667138,1769458173620,590.07398652,0.00015654,2]
[403667139,1769458173658,590.07398652,0.00015654,2]
[403667140,1769458173691,590.07398652,0.00015654,2]
[403667141,1769458173746,168.07117937,0.00015654,2]
[403667142,1769458173773,422.00280715,0.00015654,2]
[403667143,1769458173806,590.07398652,0.00015654,2]
[403667144,1769458173848,590.07398652,0.00015654,2]
[403667145,1769458173903,590.07398652,0.00015654,2]
[403667146,1769458173937,590.07398652,0.00015654,2]
[403667147,1769458174003,590.07398652,0.00015654,2]
[403667148,1769458174037,590.07398652,0.00015654,2]
[403667149,1769458174070,590.07398652,0.00015654,2]
[403667150,1769458174429,590.07398652,0.00015654,2]
[403667151,1769458174468,590.07398652,0.00015654,2]
[403667152,1769458174524,590.07398652,0.00015654,2]
[403667153,1769458174605,590.07398652,0.00015654,2]
[403667154,1769458174663,590.07398652,0.00015654,2]
[403667155,1769458189862,2497.11935461,0.00015555,2]
[403667156,1769458189892,10000.01,0.00015555,2]
[403667157,1769458189918,10000.01,0.00015555,2]
[403667158,1769458189948,10000.01,0.00015555,2]
[403667159,1769458189974,10000.01,0.00015555,2]
[403667160,1769458190000,10000.01,0.00015555,2]
[403667161,1769458190028,10000.01,0.00015555,2]
[403667162,1769458190061,10000.01,0.00015555,2]
[403667163,1769458207662,-1200.0,0.00015554,2]
[403667164,1769458207706,-300.0,0.00015554,2]
[403667165,1769458207739,-280.0,0.00015554,2]
[403667168,1769458231992,-43845.13496653,0.00015555,2]
[403667169,1769458232048,-700436.86253981,0.00015555,2]
[403667170,1769458232060,-35037.56227259,0.00015555,2]
[403667171,1769458232072,-45999.53663352,0.00015555,2]
[403667172,1769458232083,-1944.1331354,0.00015555,2]
[403667173,1769458232102,-572.84682148,0.00015555,2]
[403667174,1769458232158,-500.0,0.00015555,2]
[403667175,1769458232170,-279.26125715,0.00015555,2]
[403667176,1769458232213,-2109.64631498,0.00015555,2]
[403667182,1769458238326,-706.55591932,0.00015555,2]
[403667183,1769458238399,-15801.2485822,0.00015555,2]
[403667184,1769458238438,-304.0,0.00015555,2]
[403667185,1769458238450,-28566.06299568,0.00015555,2]
[403667186,1769458238461,-500.0,0.00015555,2]
[403667188,1769458238495,-847.97755342,0.00015555,2]
[403667213,1769458241292,-151.00000017,0.00015555,2]
[403667214,1769458241304,-541.28883372,0.00015555,2]
[403667215,1769458241363,-473.93335833,0.00015555,2]
[403667216,1769458241610,-2911.12206947,0.00015555,2]
[403667217,1769458241657,-425.63,0.00015555,2]
[403667218,1769458241692,-45549.00739162,0.00015555,2]
[403667219,1769458241701,-9356.5143,0.00015555,2]
[403667220,1769458241710,-2500.0,0.00015555,2]
[403667221,1769458241719,-590.07398652,0.00015654,2]
[403667222,1769458241730,-590.07398652,0.00015654,2]
[403667223,1769458241739,-590.07398652,0.00015654,2]
[403667224,1769458241748,-590.07398652,0.00015654,2]
[403667225,1769458241758,-590.07398652,0.00015654,2]
[403667226,1769458241767,-590.07398652,0.00015654,2]
[403667227,1769458241776,-590.07398652,0.00015654,2]
[403667228,1769458241786,-590.07398652,0.00015654,2]
[403667229,1769458241796,-590.07398652,0.00015654,2]
[403667230,1769458241805,-590.07398652,0.00015654,2]
[403667231,1769458241814,-590.07398652,0.00015654,2]
[403667232,1769458241824,-590.07398652,0.00015654,2]
[403667233,1769458241834,-590.07398652,0.00015654,2]
[403667234,1769458241843,-590.07398652,0.00015654,2]
[403667235,1769458241853,-590.07398652,0.00015654,2]
[403667236,1769458241863,-590.07398652,0.00015654,2]
[403667237,1769458241872,-590.07398652,0.00015654,2]
[403667238,1769458241883,-590.07398652,0.00015654,2]
[403667239,1769458241892,-590.07398652,0.00015654,2]
[403667240,1769458241902,-590.07398652,0.00015654,2]
[403667241,1769458241914,-590.07398652,0.00015654,2]
[403667242,1769458241926,-590.07398652,0.00015654,2]
[403667243,1769458241935,-590.07398652,0.00015654,2]
[403667244,1769458241945,-211.43657162,0.00015654,2]
[403667245,1769458241954,-3006.52437846,0.00015654,2]
[403667246,1769458241964,-3246.34406635,0.00015654,2]
[403667247,1769458241972,-250.0,0.00015655,2]
[403667248,1769458241982,-151.0,0.00015655,2]
[403667249,1769458241990,-151.0,0.00015655,2]
[403667250,1769458242001,-200.0,0.00015655,2]
[403667251,1769458242012,-82.03411707,0.00015763,2]